bitfinex/quotes_SOLUSD_20250518
["timestamp","ask_amount","ask_price","bid_price","bid_amount"]
[1747558755844,30.71115057,171.21,171.12,7.42599731]
[1747558756360,5.8414627,171.19,171.12,7.42599731]
[1747558756665,12.13151232,171.19,171.13,26.0]
[1747558763866,5.8414627,171.19,171.13,26.0]
[1747558765453,5.8414627,171.19,171.13,31.84343498]
[1747558769470,5.84112149,171.2,171.13,31.84343498]
[1747558771675,5.84112149,171.2,171.13,31.05609408]
[1747558775278,12.13117111,171.2,171.13,25.2126591]
[1747558775458,6.29004962,171.19,171.13,25.2126591]
[1747558776776,5.84180394,171.18,171.13,25.2126591]
[1747558778087,5.8414627,171.19,171.13,25.2126591]
[1747558785297,20.44511945,171.19,171.12,1.6448]
[1747558785588,26.73516907,171.19,171.12,1.6448]
[1747558785793,24.93969848,171.18,171.1,26.0]
[1747558785972,6.29004962,171.16,171.1,26.0]
[1747558786385,5.84282792,171.15,171.1,26.0]
[1747558787786,5.84248656,171.16,171.1,26.0]
[1747558788990,5.84214523,171.17,171.1,26.0]
[1747558789888,12.13219485,171.17,171.1,26.0]
[1747558790078,12.13219485,171.17,171.1,31.84445721]
[1747558790491,5.84214523,171.17,171.1,31.84445721]
[1747558791207,5.84214523,171.17,171.1,26.0]
[1747558792696,5.84214523,171.17,171.1,31.8444134]
[1747558800400,24.40156431,171.19,171.13,26.0]
[1747558800603,18.64964886,171.23,171.13,26.0]
[1747558800810,18.64964886,171.23,171.14,1.5526]
[1747558801698,5.84009811,171.23,171.14,7.7709]
[1747558801898,5.84009811,171.23,171.17,26.0]
[1747558802433,5.83975716,171.24,171.18,5.84180394]
[1747558803207,24.37946129,171.25,171.18,5.84180394]
[1747558806986,24.37946129,171.25,171.18,5.84180394]
[1747558807389,5.83873416,171.27,171.21,26.0]
[1747558808700,5.83873416,171.27,171.2,7.37902148]
[1747558809110,29.07105854,171.3,171.23,26.0]
[1747558809284,144.03745823,171.31,171.23,26.0]
[1747558809492,24.48633828,171.33,171.23,26.0]
[1747558809708,5.83668942,171.33,171.23,26.0]
[1747558810012,5.83668942,171.33,171.24,1.5379]
[1747558810313,5.83668942,171.33,171.26,26.0]
[1747558810610,5.83668942,171.33,171.26,31.83874032]
[1747558810790,12.12649729,171.34,171.26,31.83874032]
[1747558811518,15.64685987,171.34,171.26,31.83874032]
[1747558811698,5.83644767,171.34,171.26,31.83874032]
[1747558812432,9.8104122,171.33,171.26,26.0]
[1747558812714,9.8104122,171.32,171.26,26.0]
[1747558812916,9.8104122,171.33,171.26,31.83898933]
[1747558813616,15.64685987,171.34,171.26,31.83898933]
[1747558816210,5.83644767,171.34,171.26,31.83898933]
[1747558816910,6.4807,171.39,171.3,26.0]
[1747558817108,34.29436677,171.4,171.31,1.5379]
[1747558817504,9.8104122,171.39,171.31,1.5379]
[1747558818614,5.83498657,171.38,171.32,4.91252761]
[1747558819004,15.64539877,171.38,171.32,4.91252761]
[1747558820632,9.8104122,171.36,171.32,4.91252761]
[1747558820806,9.8104122,171.34,171.32,4.91252761]
[1747558821003,9.8104122,171.33,171.32,4.91252761]
[1747558821333,28.46006106,171.33,171.32,4.91252761]
[1747558822643,5.83668942,171.33,171.32,4.91252761]
[1747558826609,5.83640724,171.34,171.32,4.91252761]
[1747558826821,5.83600817,171.35,171.32,4.91252761]
[1747558828033,15.64642037,171.35,171.32,4.91252761]
[1747558828234,9.8104122,171.34,171.32,4.91252761]
[1747558830029,5.83668942,171.33,171.32,4.91252761]
[1747558830632,5.836412,171.34,171.32,4.91252761]
[1747558832231,15.6468242,171.34,171.32,4.91252761]
[1747558832461,5.836412,171.34,171.32,4.91252761]
[1747558835128,5.83532707,171.37,171.32,4.91252761]
[1747558838735,24.35509185,171.38,171.32,10.7495567]
[1747558840548,5.83430571,171.4,171.32,10.7495567]
[1747558840739,9.8104122,171.4,171.32,10.7495567]
[1747558841744,9.8104122,171.39,171.32,10.7495567]
[1747558842532,9.8104122,171.4,171.33,0.63324151]
[1747558842732,9.8104122,171.41,171.33,0.63324151]
[1747558843037,5.83371933,171.42,171.33,0.63324151]
[1747558843239,5.83338209,171.43,171.34,1.6354]
[1747558843456,15.64344163,171.44,171.38,26.0]
[1747558843632,34.29309049,171.44,171.38,26.0]
[1747558843826,9.8104122,171.44,171.38,26.0]
[1747558844032,9.8104122,171.43,171.38,26.0]
[1747558844247,9.8104122,171.41,171.35,44.5]
[1747558844627,9.8104122,171.42,171.35,44.5]
[1747558845044,5.83299086,171.44,171.35,44.5]
[1747558845244,15.64430764,171.42,171.35,50.33567202]
[1747558846264,5.83294447,171.44,171.35,50.33567202]
[1747558846559,9.8104122,171.42,171.35,50.33567202]
[1747558846751,9.8104122,171.43,171.35,50.33567202]
[1747558846953,9.8104122,171.42,171.35,50.33567202]
[1747558847483,15.64408286,171.42,171.35,50.33567202]
[1747558848662,9.8104122,171.43,171.35,50.33567202]
[1747558849862,15.64378107,171.43,171.35,50.33567202]
[1747558850165,9.8104122,171.42,171.35,50.33567202]
[1747558850667,15.64378107,171.43,171.35,50.33567202]
[1747558851140,9.8104122,171.42,171.35,50.33567202]
[1747558851648,15.6440687,171.42,171.35,50.33567202]
[1747558853653,9.8104122,171.41,171.35,44.5]
[1747558853855,9.8104122,171.4,171.35,44.5]
[1747558854997,9.8104122,171.4,171.35,26.0]
[1747558855174,15.64496614,171.4,171.35,26.0]
[1747558855749,5.83455394,171.4,171.35,31.83594079]
[1747558855964,15.64496614,171.4,171.35,31.83594079]
[1747558856264,15.64447417,171.41,171.35,31.83594079]
[1747558857491,9.8104122,171.42,171.35,31.83594079]
[1747558858669,5.83396534,171.41,171.35,31.83594079]
[1747558859087,15.64411688,171.42,171.35,31.83594079]
[1747558859584,5.83332346,171.43,171.35,31.83594079]
[1747558860475,5.83375153,171.42,171.35,31.83594079]
[1747558860681,15.64416373,171.42,171.35,31.83594079]
[1747558862183,9.8104122,171.42,171.35,31.83594079]
[1747558863167,5.83340136,171.43,171.35,31.83594079]
[1747558863371,15.64381356,171.43,171.35,31.83594079]
[1747558863682,9.8104122,171.43,171.35,31.83594079]
[1747558865083,15.64381283,171.43,171.35,31.83594079]
[1747558866083,9.8104122,171.42,171.35,31.83594079]
[1747558866682,9.8104122,171.41,171.35,5.83594079]
[1747558866878,9.8104122,171.4,171.34,46.1154]
[1747558867259,9.8104122,171.39,171.34,46.1154]
[1747558867464,9.8104122,171.39,171.34,27.6354]
[1747558867667,9.8104122,171.38,171.34,27.6354]
[1747558868163,15.64564642,171.38,171.34,27.6354]
[1747558870598,9.8104122,171.39,171.34,27.6354]
[1747558870882,5.83396534,171.41,171.34,33.47167885]
[1747558871283,9.8104122,171.44,171.34,33.47167885]
[1747558871457,9.8104122,171.44,171.37,26.0]
[1747558871984,9.8104122,171.44,171.35,26.0]
[1747558872662,15.64363469,171.44,171.36,5.8356676]
[1747558874397,138.2,171.46,171.36,5.8356676]
[1747558874398,9.8104122,171.43,171.36,5.8356676]
[1747558874782,5.83260425,171.45,171.36,5.8356676]
[1747558875096,9.8104122,171.44,171.36,5.8356676]
[1747558875272,9.8104122,171.43,171.36,5.8356676]
[1747558875793,15.64374669,171.43,171.36,5.8356676]
[1747558876287,9.8104122,171.43,171.36,5.8356676]
[1747558877298,15.6438421,171.43,171.36,5.8356676]
[1747558881094,9.8104122,171.42,171.35,50.2958977]
[1747558881399,9.8104122,171.4,171.35,24.2958977]
[1747558882293,15.64448099,171.41,171.35,18.46]
[1747558883586,9.8104122,171.4,171.35,18.46]
[1747558884293,9.8104122,171.4,171.35,24.29597893]
[1747558884478,15.64482558,171.4,171.35,24.29597893]
[1747558885305,5.83441338,171.4,171.35,24.29597893]
[1747558886901,5.83441338,171.4,171.35,5.83597893]
[1747558887123,15.64445724,171.41,171.35,5.83597893]
[1747558887402,15.64402866,171.43,171.35,5.83597893]
[1747558889500,5.8328386,171.45,171.35,20.42599935]
[1747558889688,5.8328386,171.45,171.35,20.93259256]
[1747558890090,15.6432508,171.45,171.35,20.93259256]
[1747558892610,9.8104122,171.44,171.35,20.93259256]
[1747558894782,15.64336312,171.44,171.35,20.93259256]
[1747558895322,5.83258319,171.46,171.38,26.0]
[1747558895489,9.8104122,171.45,171.38,26.0]
[1747558895984,15.64306486,171.45,171.39,5.83464612]
[1747558899106,5.83226408,171.46,171.39,5.83464612]
[1747558899283,15.64267628,171.46,171.39,5.83464612]
[1747558899610,15.64267628,171.46,171.39,24.29464612]
[1747558902713,9.8104122,171.45,171.39,24.29464612]
[1747558903011,15.64302214,171.45,171.39,24.29464612]
[1747558904012,5.83226408,171.46,171.39,24.29464612]
[1747558904209,9.8104122,171.45,171.39,24.29464612]
[1747558905312,9.8104122,171.45,171.39,18.46]
[1747558905516,9.8104122,171.43,171.39,18.46]
[1747558905683,9.8104122,171.41,171.38,26.50659321]
[1747558906208,9.8104122,171.41,171.38,0.50659321]
[1747558906209,15.64438497,171.41,171.38,0.50659321]
[1747558906405,9.8104122,171.4,171.38,0.50659321]
[1747558908111,9.8104122,171.39,171.38,0.50659321]
[1747558908300,15.64505832,171.39,171.38,0.50659321]
[1747558913019,20.4154411,171.44,171.38,0.50659321]
[1747558913318,9.8104122,171.4,171.38,0.50659321]
[1747558914902,9.8104122,171.42,171.38,0.50659321]
[1747558915432,15.6443255,171.42,171.38,0.50659321]
[1747558915603,9.8104122,171.42,171.38,0.50659321]
[1747558915810,15.64374691,171.43,171.38,0.50659321]
[1747558918726,9.8104122,171.42,171.38,0.50659321]
[1747558919110,15.6442595,171.42,171.38,0.50659321]
[1747558920722,9.8104122,171.41,171.38,0.50659321]
[1747558922316,15.64441193,171.41,171.38,0.50659321]
[1747558926632,9.8104122,171.41,171.38,0.50659321]
[1747558926832,9.8104122,171.42,171.38,0.50659321]
[1747558927432,15.64408749,171.42,171.38,0.50659321]
[1747558928310,9.8104122,171.41,171.38,0.50659321]
[1747558928509,9.8104122,171.4,171.38,0.50659321]
[1747558928832,9.8104122,171.39,171.38,0.50659321]
[1747558930061,15.64484024,171.4,171.38,0.50659321]
[1747558930619,9.8104122,171.4,171.38,0.50659321]
[1747558930822,9.8104122,171.41,171.38,0.50659321]
[1747558931006,9.8104122,171.42,171.38,0.50659321]
[1747558932303,9.8104122,171.41,171.38,0.50659321]
[1747558932734,15.64455888,171.41,171.38,0.50659321]
[1747558932921,5.83414668,171.41,171.38,0.50659321]
[1747558933129,15.64455888,171.41,171.38,0.50659321]
[1747558934040,33.23237384,171.44,171.38,0.50659321]
[1747558934041,5.83328472,171.43,171.38,0.50659321]
[1747558934209,9.8104122,171.41,171.38,0.50659321]
[1747558936111,9.8104122,171.4,171.38,0.50659321]
[1747558936533,9.8104122,171.39,171.38,0.50659321]
[1747558937729,15.64505832,171.39,171.38,0.50659321]
[1747558938337,34.29470718,171.39,171.38,0.50659321]
[1747558938849,18.64964886,171.38,171.28,1.6487]
[1747558939030,9.8104122,171.32,171.28,1.6487]
[1747558939441,9.8104122,171.29,171.26,12.83256688]
[1747558939633,9.8104122,171.27,171.26,12.83256688]
[1747558940032,15.64914636,171.27,171.26,12.83256688]
[1747558941641,34.29879522,171.27,171.26,4.51609238]
[1747558946653,9.8104122,171.27,171.26,4.51609238]
[1747558946850,9.8104122,171.28,171.26,4.51609238]
[1747558947729,9.8104122,171.27,171.26,4.51609238]
[1747558948533,15.64914636,171.27,171.26,4.51609238]
[1747558949051,9.8104122,171.27,171.26,4.51609238]
[1747558950656,15.64914636,171.27,171.26,4.51609238]
[1747558951872,34.29879522,171.27,171.26,4.51609238]
[1747558954067,46.39879522,171.27,171.26,4.51609238]
[1747558954866,34.29879522,171.27,171.26,4.51609238]
[1747558956054,9.8104122,171.27,171.26,4.51609238]
[1747558957059,15.64914636,171.27,171.26,4.51609238]
[1747558961248,23.64914636,171.27,171.26,4.51609238]
[1747558961872,8.0,171.27,171.26,4.51609238]
[1747558962070,34.08821299,171.3,171.26,4.51609238]
[1747558962383,9.8104122,171.31,171.26,6.07529238]
[1747558962548,9.8104122,171.32,171.26,11.91424682]
[1747558962742,5.83678834,171.33,171.26,11.91424682]
[1747558962958,15.64720054,171.33,171.26,11.91424682]
[1747558963344,5.83678834,171.33,171.26,11.91424682]
[1747558963748,15.64720054,171.33,171.26,11.91424682]
[1747558964471,5.83678834,171.33,171.26,11.91424682]
[1747558964676,15.64720054,171.33,171.26,11.91424682]
[1747558966545,9.8104122,171.3,171.26,6.07529238]
[1747558967258,20.42851191,171.33,171.26,6.07529238]
[1747558967463,9.8104122,171.31,171.26,6.07529238]
[1747558967850,9.8104122,171.3,171.26,6.07529238]
[1747558968168,9.8104122,171.29,171.26,6.07529238]
[1747558968868,15.64879756,171.29,171.26,6.07529238]
[1747558969673,9.8104122,171.27,171.26,4.51609238]
[1747558970779,15.64914636,171.27,171.26,4.51609238]
[1747558971381,15.64891166,171.28,171.26,4.51609238]
[1747558971577,5.83849946,171.28,171.26,4.51609238]
[1747558972073,15.64891166,171.28,171.26,4.51609238]
[1747558972256,9.8104122,171.27,171.26,4.51609238]
[1747558973079,15.64914636,171.27,171.26,4.51609238]
[1747558981888,27.74914636,171.27,171.26,4.51609238]
[1747558983276,15.64914636,171.27,171.26,4.51609238]
[1747558986804,27.74914636,171.27,171.26,4.51609238]
[1747558992311,17.93873416,171.27,171.26,4.51609238]
[1747558992513,5.83873416,171.27,171.26,4.51609238]
[1747558992807,15.64914636,171.27,171.26,4.51609238]
[1747558993124,5.83873416,171.27,171.26,4.51609238]
[1747558993506,15.64914636,171.27,171.26,4.51609238]
[1747558996693,5.83873416,171.27,171.26,4.51609238]
[1747558997088,33.24334177,171.31,171.26,4.51609238]
[1747558997089,24.40410511,171.31,171.26,4.51609238]
[1747558997635,9.8104122,171.29,171.26,4.51609238]
[1747558997805,9.8104122,171.28,171.26,4.51609238]
[1747558998104,9.8104122,171.27,171.26,4.51609238]
[1747558998780,15.64914636,171.27,171.26,4.51609238]
[1747559000801,5.83848539,171.28,171.26,4.51609238]
[1747559003426,9.8104122,171.29,171.26,4.51609238]
[1747559003427,5.83815961,171.29,171.26,4.51609238]
[1747559005320,15.64857181,171.29,171.26,4.51609238]
[1747559009123,9.8104122,171.3,171.26,4.51609238]
[1747559011201,5.83805242,171.29,171.26,4.51609238]
[1747559011817,10.1,171.31,171.27,1.6356]
[1747559012210,10.1,171.31,171.29,26.0]
[1747559012404,22.60132363,171.37,171.31,26.0]
[1747559012939,4.18132363,171.37,171.31,26.0]
[1747559013118,5.83569277,171.36,171.31,26.0]
[1747559013926,5.83541022,171.37,171.31,31.83734121]
[1747559014127,10.42888704,171.38,171.31,31.83734121]
[1747559014326,10.42888704,171.38,171.32,20.1044]
[1747559015334,16.26389652,171.38,171.32,25.94111323]
[1747559017724,10.42888704,171.38,171.32,25.94111323]
[1747559019020,5.83473369,171.39,171.32,32.02261323]
[1747559019528,15.6446543,171.41,171.32,32.02261323]
[1747559019729,18.42,171.47,171.36,1.5558]
[1747559019937,9.8104122,171.45,171.36,1.5558]
[1747559020812,5.83294447,171.44,171.37,5.83532707]
[1747559021414,5.83294447,171.44,171.38,18.42]
[1747559021822,15.64309853,171.45,171.38,18.42]
[1747559022135,5.83268633,171.45,171.38,18.42]
[1747559022811,15.64267628,171.46,171.39,5.83464612]
[1747559024540,15.64311685,171.45,171.39,5.83464612]
[1747559026944,9.8104122,171.44,171.38,24.25496647]
[1747559028139,9.8104122,171.43,171.38,18.42]
[1747559029539,15.64373449,171.43,171.38,18.42]
[1747559030434,15.64373449,171.43,171.36,25.81129959]
[1747559031011,15.64373449,171.43,171.36,19.9758]
[1747559031233,9.8104122,171.41,171.36,1.5558]
[1747559031426,15.64452828,171.41,171.36,1.5558]
[1747559032937,9.8104122,171.41,171.36,7.39141647]
[1747559033238,9.8104122,171.44,171.36,33.39141647]
[1747559034639,15.64345987,171.44,171.36,33.39141647]
[1747559035947,5.83304767,171.44,171.36,33.39141647]
[1747559036128,15.64345987,171.44,171.36,33.39141647]
[1747559036640,27.64305113,171.45,171.36,33.39141647]
[1747559037726,21.8104122,171.45,171.36,47.98058547]
[1747559037927,27.64305473,171.45,171.36,47.98058547]
[1747559038126,17.83264253,171.45,171.36,47.98058547]
[1747559038328,12.0,171.45,171.36,47.98058547]
[1747559040332,12.0,171.45,171.36,52.54965187]
[1747559040535,12.0,171.45,171.4,26.0]
[1747559040843,12.0,171.45,171.41,1.6044]
[1747559041327,12.0,171.45,171.41,20.0044]
[1747559042449,12.0,171.45,171.42,5.83362501]
[1747559049239,12.0,171.45,171.44,26.0]
[1747559050177,12.0,171.45,171.44,31.83294447]
[1747559050330,12.0,171.45,171.44,58.20159333]
[1747559050532,5.82941076,171.55,171.45,18.64964886]
[1747559050732,15.63982296,171.55,171.46,18.4]
[1747559050933,15.63982296,171.55,171.47,18.4]
[1747559051132,9.8104122,171.53,171.47,18.4]
[1747559051357,9.8104122,171.52,171.47,18.4]
[1747559052054,20.40242154,171.55,171.47,18.4]
[1747559052055,9.8104122,171.5,171.47,18.4]
[1747559052239,5.8312438,171.49,171.46,18.4]
[1747559053939,5.83099138,171.5,171.46,18.4]
[1747559056942,15.64140358,171.5,171.46,18.4]
[1747559059167,9.8104122,171.48,171.42,36.8]
[1747559059355,5.83192395,171.47,171.42,36.8]
[1747559059750,15.64208062,171.48,171.42,42.63351111]
[1747559059951,5.83166842,171.48,171.42,42.63351111]
[1747559060161,5.83136539,171.49,171.42,42.63351111]
[1747559060341,5.83136539,171.49,171.42,24.23351111]
[1747559061959,9.8104122,171.49,171.42,24.23351111]
[1747559063971,15.64188587,171.49,171.42,24.23351111]
[1747559064349,15.64188587,171.49,171.42,42.63351111]
[1747559064658,5.83147367,171.49,171.42,42.63351111]
[1747559064860,15.64188587,171.49,171.42,42.63351111]
[1747559066057,15.64142856,171.5,171.42,42.63351111]
[1747559066372,5.83101636,171.5,171.42,42.63351111]
[1747559068051,15.64107599,171.51,171.42,42.63351111]
[1747559068273,9.8104122,171.52,171.45,26.0]
[1747559068475,15.64049702,171.53,171.45,26.0]
[1747559068656,5.83008482,171.53,171.46,1.5844]
[1747559069302,15.64049702,171.53,171.46,7.41645275]
[1747559069660,9.8104122,171.52,171.46,7.41645275]
[1747559070587,15.6407612,171.52,171.46,7.41645275]
[1747559070981,9.8104122,171.52,171.46,7.41645275]
[1747559071188,15.64040584,171.53,171.46,7.41645275]
[1747559073775,5.82920431,171.55,171.46,7.41645275]
[1747559073968,9.8104122,171.53,171.46,7.41645275]
[1747559075169,15.64060487,171.53,171.46,7.41645275]
[1747559075679,5.83019267,171.53,171.46,7.41645275]
[1747559075866,15.64060487,171.53,171.46,7.41645275]
[1747559076894,5.82948941,171.55,171.46,7.41645275]
[1747559077076,15.63990161,171.55,171.46,7.41645275]
[1747559077413,5.82948941,171.55,171.46,7.41645275]
[1747559077569,5.82948941,171.55,171.46,13.83515275]
[1747559077879,15.63990161,171.55,171.46,13.83515275]
[1747559082279,9.8104122,171.54,171.46,13.83515275]
[1747559082972,9.8104122,171.55,171.46,13.83515275]
[1747559083501,9.8104122,171.55,171.46,28.41581296]
[1747559085205,15.63969443,171.55,171.46,28.41581296]
[1747559085512,9.8104122,171.54,171.46,28.41581296]
[1747559085678,9.8104122,171.54,171.46,13.83515275]
[1747559086716,15.64012334,171.54,171.46,13.83515275]
[1747559088887,9.8104122,171.53,171.46,13.83515275]
[1747559090106,15.64060924,171.53,171.46,32.21515275]
[1747559092510,9.8104122,171.54,171.46,32.21515275]
[1747559093487,15.64006933,171.54,171.46,32.21515275]
[1747559094108,5.82965713,171.54,171.46,32.21515275]
[1747559094313,15.64006933,171.54,171.46,32.21515275]
[1747559098206,9.8104122,171.53,171.46,32.21515275]
[1747559098416,9.8104122,171.53,171.46,25.79645275]
[1747559100424,5.82988398,171.53,171.46,25.79645275]
[1747559102534,5.82965817,171.54,171.46,25.79645275]
[1747559102744,15.64007037,171.54,171.46,25.79645275]
[1747559103021,5.82965817,171.54,171.46,25.79645275]
[1747559103327,12.09283303,171.54,171.46,25.79645275]
[1747559104117,12.09283303,171.54,171.46,44.17645275]
[1747559104720,20.40008443,171.57,171.46,44.17645275]
[1747559104921,6.26317486,171.54,171.46,44.17645275]
[1747559105301,6.26317486,171.53,171.46,44.17645275]
[1747559105930,12.09333072,171.53,171.46,44.17645275]
[1747559107428,6.26317486,171.53,171.46,44.17645275]
[1747559107733,5.82992824,171.53,171.46,44.17645275]
[1747559111819,12.09282554,171.54,171.46,44.17645275]
[1747559115639,20.40008443,171.57,171.46,44.17645275]
[1747559115811,6.26317486,171.55,171.46,44.17645275]
[1747559116010,6.26317486,171.54,171.46,44.17645275]
[1747559116435,12.09297195,171.54,171.46,44.17645275]
[1747559120040,6.26317486,171.55,171.46,44.17645275]
[1747559121234,5.82954412,171.54,171.46,44.17645275]
[1747559125440,6.26317486,171.49,171.43,26.6964745]
[1747559125636,6.26317486,171.48,171.43,26.6964745]
[1747559126137,6.26317486,171.44,171.43,8.3164745]
[1747559126341,50.91282372,171.44,171.43,8.3164745]
[1747559126512,51.03954886,171.42,171.39,26.51285999]
[1747559126713,24.91282372,171.4,171.39,18.19638549]
[1747559127335,30.74712943,171.4,171.39,18.19638549]
[1747559127714,56.74712943,171.4,171.39,18.19638549]
[1747559127914,26.0,171.38,171.37,36.39277098]
[1747559128114,50.91282372,171.38,171.37,36.39277098]
[1747559129116,50.91282372,171.38,171.28,7.48692327]
[1747559129421,9.80883492,171.34,171.28,7.48692327]
[1747559130430,15.64499066,171.35,171.28,7.48692327]
[1747559131647,5.83532707,171.37,171.28,7.48692327]
[1747559131950,18.64964886,171.4,171.31,26.0]
[1747559132134,9.80883492,171.39,171.31,26.0]
[1747559132443,15.64348104,171.39,171.31,26.0]
[1747559133219,18.38,171.41,171.31,26.0]
[1747559133220,9.80883492,171.4,171.31,26.0]
[1747559133425,9.80883492,171.41,171.31,26.0]
[1747559133642,15.64281784,171.41,171.33,26.0]
[1747559133843,15.64281784,171.41,171.33,62.76]
[1747559134547,9.80883492,171.42,171.33,62.76]
[1747559134750,153.842428,171.43,171.33,62.76]
[1747559134949,5.83299298,171.44,171.34,1.6177]
[1747559135129,15.6418279,171.44,171.34,1.6177]
[1747559135729,9.80883492,171.41,171.34,7.45398023]
[1747559135953,9.80883492,171.4,171.34,7.45398023]
[1747559136452,9.80883492,171.39,171.34,1.6177]
[1747559138161,15.64340878,171.4,171.34,7.45397787]
[1747559138448,15.64280477,171.41,171.34,7.45397787]
[1747559140234,9.80883492,171.4,171.34,7.45397787]
[1747559140440,9.80883492,171.4,171.34,1.6177]
[1747559141024,9.80883492,171.4,171.34,7.45389767]
[1747559143948,15.64286573,171.41,171.34,7.45389767]
[1747559145034,6.2553,171.46,171.34,7.45389767]
[1747559145235,5.83260425,171.45,171.37,26.0]
[1747559145556,15.64143917,171.45,171.37,26.0]
[1747559145937,9.80883492,171.44,171.37,26.0]
[1747559146558,15.64180107,171.44,171.38,5.83498657]
[1747559148440,5.83226408,171.46,171.38,5.83498657]
[1747559148645,9.80883492,171.45,171.38,5.83498657]
[1747559149039,9.80883492,171.44,171.38,5.83498657]
[1747559149461,15.64180409,171.44,171.38,5.83498657]
[1747559150061,5.83296917,171.44,171.38,5.83498657]
[1747559150948,9.80883492,171.44,171.38,5.83498657]
[1747559152362,15.64185992,171.44,171.38,5.83498657]
[1747559153045,15.64185992,171.44,171.37,31.83523557]
[1747559153244,9.80883492,171.43,171.37,26.0]
[1747559153840,9.80883492,171.42,171.37,26.0]
[1747559154644,5.83396534,171.41,171.37,26.0]
[1747559155669,15.64245005,171.43,171.37,26.0]
[1747559156151,15.64245005,171.43,171.37,31.83527653]
[1747559156358,9.80883492,171.43,171.37,31.83527653]
[1747559158659,15.6422179,171.43,171.37,31.83527653]
[1747559159275,5.83338298,171.43,171.37,31.83527653]
[1747559160344,5.83338298,171.43,171.36,5.8355532]
[1747559160550,9.80883492,171.42,171.36,5.8355532]
[1747559161264,15.6422179,171.43,171.36,5.8355532]
[1747559161566,15.6422179,171.43,171.35,5.83600817]
[1747559161766,9.80883492,171.42,171.35,5.83600817]
[1747559162873,5.83396534,171.41,171.35,5.83600817]
[1747559163073,9.80883492,171.4,171.34,1.6177]
[1747559163274,5.83371162,171.42,171.34,7.45400868]
[1747559163480,15.64254654,171.42,171.34,7.45400868]
[1747559163770,5.83371162,171.42,171.34,7.45400868]
[1747559166059,9.80883492,171.42,171.34,7.45400868]
[1747559166671,5.83328472,171.43,171.34,7.45400868]
[1747559166878,9.80883492,171.42,171.34,7.45400868]
[1747559167265,5.83396534,171.41,171.34,7.45400868]
[1747559167583,15.64252267,171.42,171.34,7.45400868]
[1747559168764,15.64211964,171.43,171.34,7.45400868]
[1747559169578,9.80883492,171.41,171.34,7.45400868]
[1747559170078,15.6429557,171.41,171.34,7.45400868]
[1747559171183,9.80883492,171.42,171.34,7.45400868]
[1747559171559,5.83328472,171.43,171.34,7.45400868]
[1747559171766,9.80883492,171.42,171.34,7.45400868]
[1747559172484,5.83396534,171.41,171.34,7.45400868]
[1747559172980,15.64280026,171.41,171.34,1.6177]
[1747559173179,138.2,171.45,171.36,26.0]
[1747559173365,18.38,171.47,171.37,6.1091]
[1747559173570,9.80883492,171.49,171.37,6.1091]
[1747559174175,9.80883492,171.49,171.4,27.5605]
[1747559174371,4.14782084,171.5,171.42,20.41768754]
[1747559174990,4.14782084,171.5,171.45,26.0]
[1747559176175,9.80883492,171.53,171.45,28.94325995]
[1747559176385,9.80883492,171.52,171.46,5.83226408]
[1747559177388,9.80883492,171.52,171.45,34.77579151]
[1747559178882,15.63910795,171.52,171.45,31.83253156]
[1747559179196,9.80883492,171.51,171.45,26.0]
[1747559180093,24.47992189,171.52,171.42,24.21362501]
[1747559180273,9.80883492,171.47,171.42,24.21362501]
[1747559180474,15.64073246,171.48,171.42,24.21362501]
[1747559181292,9.80883492,171.48,171.42,24.21362501]
[1747559181495,15.63984294,171.5,171.42,24.21362501]
[1747559183196,9.80883492,171.5,171.42,27.18159369]
[1747559183497,9.80883492,171.51,171.42,27.18159369]
[1747559184485,15.63973871,171.5,171.42,27.18159369]
[1747559184977,9.80883492,171.49,171.42,27.18159369]
[1747559186176,9.80883492,171.5,171.42,27.18159369]
[1747559186577,9.80883492,171.5,171.43,18.38]
[1747559186899,9.80883492,171.49,171.43,18.38]
[1747559187897,20.40578358,171.52,171.43,18.38]
[1747559188075,9.80883492,171.49,171.43,18.38]
[1747559188277,5.83158385,171.48,171.43,18.38]
[1747559189698,5.8312438,171.49,171.43,18.38]
[1747559191077,15.64007872,171.49,171.43,18.38]
[1747559192199,5.8312438,171.49,171.43,18.38]
[1747559192779,15.64007872,171.49,171.43,18.38]
[1747559192991,9.80883492,171.48,171.43,18.38]
[1747559193810,5.83192395,171.47,171.43,18.38]
[1747559195101,5.83192395,171.47,171.41,31.8339415]
[1747559196508,9.80883492,171.48,171.41,31.8339415]
[1747559196910,9.80883492,171.48,171.41,26.0]
[1747559197093,9.80883492,171.48,171.41,31.83393806]
[1747559198412,5.83192395,171.47,171.41,31.83393806]
[1747559200287,5.83192395,171.47,171.41,26.0]
[1747559201187,5.83192395,171.47,171.41,31.83392089]
[1747559203304,5.83158385,171.48,171.41,31.83392089]
[1747559205499,5.8312438,171.49,171.41,31.83392089]